fUST/lending_fUST_20250724
["ID","MTS","AMOUNT","RATE_DAILY","PERIOD"]
[374399650,1753288239770,-460.0,0.00019452,2]
[374399651,1753288239780,-510.32,0.00019452,2]
[374399652,1753288239789,-460.0,0.00019452,2]
[374399653,1753288239799,-460.0,0.00019452,2]
[374399654,1753288239808,-460.0,0.00019452,2]
[374399655,1753288239818,-460.0,0.00019452,2]
[374399656,1753288239827,-969.61,0.00019452,2]
[374399657,1753288239837,-985.12,0.00019452,2]
[374399658,1753288239847,-460.0,0.00019452,2]
[374399659,1753288239857,-679.58,0.00019452,2]
[374399660,1753288239868,-460.0,0.00019452,2]
[374399661,1753288239878,-460.0,0.00019452,2]
[374399662,1753288239887,-546.07,0.00019452,2]
[374399663,1753288239897,-460.0,0.00019452,2]
[374399665,1753288239908,-460.0,0.00019452,2]
[374399666,1753288239919,-460.0,0.00019452,2]
[374399667,1753288239928,-758.35,0.00019452,2]
[374399668,1753288239938,-557.76,0.00019452,2]
[374399669,1753288239947,-460.0,0.00019452,2]
[374399670,1753288239957,-4434.18,0.00019452,2]
[374399671,1753288239967,-3588.5,0.00019452,2]
[374399672,1753288239976,-1096.99,0.00019452,2]
[374399673,1753288239986,-460.0,0.00019452,2]
[374399674,1753288239995,-460.0,0.00019452,2]
[374399675,1753288240005,-1211.42,0.00019452,2]
[374399676,1753288240015,-500.0,0.00019625,2]
[374399677,1753288240024,-690.71,0.00019724,2]
[374399678,1753288240034,-862.25,0.00019724,2]
[374399679,1753288240044,-696.5,0.00019724,2]
[374399680,1753288240054,-460.0,0.00019724,2]
[374399681,1753288240063,-321.01346423,0.00019725,2]
[374399682,1753288240073,-460.0,0.00019725,2]
[374399683,1753288240083,-464.30503232,0.00019725,2]
[374399684,1753288240092,-460.0,0.00019725,2]
[374399685,1753288240102,-460.0,0.00019725,2]
[374399686,1753288240114,-460.0,0.00019725,2]
[374399687,1753288240123,-460.0,0.00019725,2]
[374399688,1753288240133,-460.0,0.00019726,2]
[374399689,1753288240143,-460.0,0.00019726,2]
[374399690,1753288240153,-460.0,0.00019726,2]
[374399691,1753288240163,-460.0,0.00019726,2]
[374399692,1753288240175,-497.71246789,0.00019726,2]
[374399693,1753288240184,-985.12,0.00019726,2]
[374399694,1753288240194,-969.61,0.00019726,2]
[374399695,1753288240203,-460.0,0.00019726,2]
[374399696,1753288240213,-679.58,0.00019726,2]
[374399697,1753288240223,-460.0,0.00019726,2]
[374399699,1753288240233,-460.0,0.00019726,2]
[374399702,1753288240243,-546.07,0.00019726,2]
[374399705,1753288240253,-460.0,0.00019726,2]
[374399707,1753288240262,-460.0,0.00019726,2]
[374399709,1753288240272,-460.0,0.00019726,2]
[374399711,1753288240282,-758.35,0.00019726,2]
[374399713,1753288240291,-557.76,0.00019726,2]
[374399715,1753288240301,-460.0,0.00019726,2]
[374399717,1753288240311,-4434.18,0.00019726,2]
[374399720,1753288240320,-4434.18,0.00019726,2]
[374399722,1753288240330,-1096.99,0.00019726,2]
[374399723,1753288240340,-3588.5,0.00019726,2]
[374399726,1753288240350,-358.51447499,0.00019726,2]
[374399728,1753288240361,-460.0,0.00019726,2]
[374399730,1753288240370,-1211.42,0.00019726,2]
[374399732,1753288240381,-632.55064825,0.00019884,2]
[374399733,1753288240391,-690.71,0.00019998,2]
[374399736,1753288240401,-862.25,0.00019998,2]
[374399738,1753288240410,-696.5,0.00019998,2]
[374399740,1753288240423,-460.0,0.00019998,2]
[374399742,1753288240433,-460.0,0.00019999,2]
[374399744,1753288240442,-535.71956193,0.00019999,2]
[374399746,1753288240453,-460.0,0.00019999,2]
[374399748,1753288240463,-460.0,0.00019999,2]
[374399750,1753288240473,-460.0,0.0002,2]
[374399752,1753288240483,-460.0,0.0002,2]
[374399753,1753288240493,-580.92190739,0.0002,2]
[374399756,1753288240503,-154.90019956,0.0002,2]
[374399758,1753288240517,-969.61,0.0002,2]
[374399759,1753288240527,-985.12,0.0002,2]
[374399762,1753288240537,-460.0,0.0002,2]
[374399764,1753288240547,-679.58,0.0002,2]
[374399766,1753288240556,-460.0,0.0002,2]
[374399767,1753288240567,-546.07,0.0002,2]
[374399770,1753288240577,-460.0,0.0002,2]
[374399771,1753288240587,-9387.05962993,0.0002,2]
[374399773,1753288240596,-3196.09786644,0.0002,2]
[374399776,1753288240606,-362.89968044,0.0002,2]
[374399778,1753288240615,-37620.25626344,0.0002,2]
[374399779,1753288240625,-577.99,0.0002,2]
[374399782,1753288240635,-460.0,0.0002,2]
[374399784,1753288240644,-758.35,0.0002,2]
[374399786,1753288240655,-557.76,0.0002,2]
[374399788,1753288240664,-160.0,0.0002,3]
[374399790,1753288240677,-460.0,0.0002,2]
[374399792,1753288240687,-4434.18,0.0002,2]
[374399794,1753288240697,-4434.18,0.0002,2]
[374399796,1753288240706,-1096.99,0.0002,2]
[374399798,1753288240716,-3588.5,0.0002,2]
[374399800,1753288240725,-460.0,0.0002,2]
[374399802,1753288240735,-500.0,0.00020069,2]
[374399804,1753288240744,-500.0,0.00020069,2]
[374399806,1753288240754,-388.982101,0.00020187,2]
[374399808,1753288240763,-500.0,0.000202,2]
[374399810,1753288240773,-690.71,0.00020272,2]
[374399812,1753288240782,-862.25,0.00020272,2]
[374399813,1753288240792,-696.5,0.00020272,2]
[374399815,1753288240801,-460.0,0.00020272,2]
[374399817,1753288240811,-460.0,0.00020273,2]
[374399820,1753288240821,-460.0,0.00020273,2]
[374399822,1753288240830,-460.0,0.00020273,2]
[374399823,1753288240840,-726.78,0.00020273,2]
[374399826,1753288240850,-460.0,0.00020273,2]
[374399827,1753288240860,-985.12,0.00020273,2]
[374399829,1753288240870,-969.61,0.00020273,2]
[374399831,1753288240879,-424.51653414,0.00020273,2]
[374399833,1753288240889,-460.0,0.00020273,2]
[374399835,1753288240898,-679.58,0.00020273,2]
[374399837,1753288240908,-460.0,0.00020273,2]
[374399840,1753288240918,-546.07,0.00020273,2]
[374399841,1753288240928,-460.0,0.00020273,2]
[374399844,1753288240938,-460.0,0.00020273,2]
[374399846,1753288240948,-758.35,0.00020273,2]
[374399847,1753288240958,-557.76,0.00020273,2]
[374399850,1753288240968,-460.0,0.00020273,2]
[374399851,1753288240977,-4434.18,0.00020273,2]
[374399853,1753288240987,-1096.99,0.00020273,2]
[374399856,1753288240996,-3588.5,0.00020273,2]
[374399858,1753288241006,-460.0,0.00020273,2]
[374399861,1753288241026,-430.99,0.00020318,2]
[374399863,1753288241038,-571.0935272,0.000204,2]
[374399865,1753288241048,-2694.85,0.00020498,2]
[374399867,1753288241058,-3000.0,0.00020526,2]
[374399869,1753288241068,-899.04,0.00020537,3]
[374399871,1753288241077,-690.71,0.00020546,2]
[374399873,1753288241087,-862.25,0.00020546,2]
[374399875,1753288241097,-696.5,0.00020546,2]
[374399877,1753288241108,-460.0,0.00020546,2]
[374399879,1753288241118,-460.0,0.00020547,2]
[374399881,1753288241128,-185.99458851,0.00020547,2]
[374399883,1753288241138,-726.78,0.00020547,2]
[374399885,1753288241148,-460.0,0.00020547,2]
[374399887,1753288241159,-985.12,0.00020547,2]
[374399890,1753288241171,-969.61,0.00020547,2]
[374399892,1753288241180,-460.0,0.00020547,2]
[374399894,1753288241190,-679.58,0.00020547,2]
[374399896,1753288241201,-460.0,0.00020547,2]
[374399898,1753288241211,-546.07,0.00020547,2]
[374399900,1753288241221,-460.0,0.00020547,2]
[374399902,1753288241231,-460.0,0.00020547,2]
[374399904,1753288241241,-758.35,0.00020547,2]
[374399906,1753288241251,-557.76,0.00020547,2]
[374399908,1753288241260,-460.0,0.00020547,2]
[374399910,1753288241270,-1096.99,0.00020547,2]
[374399912,1753288241279,-4434.18,0.00020547,2]
[374399914,1753288241289,-3588.5,0.00020547,2]
[374399916,1753288241299,-460.0,0.00020547,2]
[374399918,1753288241308,-800.0,0.00020555,2]
[374399920,1753288241318,-160.0,0.000206,2]
[374399922,1753288241328,-299.67,0.00020607,3]
[374399924,1753288241337,-500.0,0.00020617,2]
[374399926,1753288241346,-500.0,0.00020617,2]
[374399928,1753288241356,-888.092,0.00020735,2]
[374399930,1753288241366,-178.72319565,0.00020735,2]
[374399932,1753288241376,-389.97,0.0002074,3]
[374399934,1753288241385,-500.0,0.00020748,2]
[374399936,1753288241395,-632.55064825,0.00020769,2]
[374399938,1753288241404,-1103.94,0.00020811,3]
[374399940,1753288241414,-551.96,0.00020811,3]
[374399942,1753288241426,-599.35,0.00020811,3]
[374399944,1753288241435,-690.71,0.0002082,2]
[374399946,1753288241445,-862.25,0.0002082,2]
[374399948,1753288241455,-696.5,0.0002082,2]
[374399950,1753288241464,-460.0,0.0002082,2]
[374399952,1753288241474,-460.0,0.00020821,2]
[374399954,1753288241483,-726.78,0.00020821,2]
[374399956,1753288241495,-460.0,0.00020821,2]
[374399958,1753288241505,-985.12,0.00020821,2]
[374399960,1753288241517,-969.61,0.00020821,2]
[374399962,1753288241526,-460.0,0.00020821,2]
[374399964,1753288241536,-679.58,0.00020821,2]
[374399966,1753288241546,-269.43453251,0.00020821,2]
[374399968,1753288241556,-546.07,0.00020821,2]
[374399970,1753288241565,-460.0,0.00020821,2]
[374399972,1753288241575,-460.0,0.00020821,2]
[374399974,1753288241584,-758.35,0.00020821,2]
[374399976,1753288241595,-557.76,0.00020821,2]
[374399978,1753288241605,-460.0,0.00020821,2]
[374399980,1753288241614,-1096.99,0.00020821,2]
[374399982,1753288241624,-4434.18,0.00020821,2]
[374399984,1753288241633,-3588.5,0.00020821,2]
[374399986,1753288241643,-460.0,0.00020821,2]
[374399988,1753288241652,-250.12389181,0.000209,2]
[374399990,1753288241662,-270.26850122,0.00021,2]
[374399992,1753288241673,-679.97430302,0.00021,10]
[374399994,1753288241682,-45540.53078961,0.00021,2]
[374399996,1753288241692,-690.71,0.00021094,2]
[374399998,1753288241702,-862.25,0.00021094,2]
[374400000,1753288241712,-696.5,0.00021094,2]
[374400002,1753288241721,-460.0,0.00021094,2]
[374400004,1753288241731,-460.0,0.00021095,2]
[374400006,1753288241740,-726.78,0.00021095,2]
[374400008,1753288241750,-460.0,0.00021095,2]
[374400010,1753288241759,-985.12,0.00021095,2]
[374400013,1753288241769,-969.61,0.00021095,2]
[374400014,1753288241779,-460.0,0.00021095,2]
[374400015,1753288241788,-679.58,0.00021095,2]
[374400016,1753288241797,-546.07,0.00021095,2]
[374400017,1753288241807,-460.0,0.00021095,2]
[374400018,1753288241816,-460.0,0.00021095,2]
[374400019,1753288241826,-758.35,0.00021095,2]
[374400020,1753288241835,-557.76,0.00021095,2]
[374400021,1753288241845,-460.0,0.00021095,2]
[374400022,1753288241855,-1096.99,0.00021095,2]
[374400023,1753288241864,-4434.18,0.00021095,2]
[374400024,1753288241873,-3588.5,0.00021095,2]
[374400025,1753288241883,-460.0,0.00021095,2]
[374400026,1753288241892,-260.0,0.00021148,2]
[374400027,1753288241901,-646.48,0.00021241,2]
[374400028,1753288241911,-160.0,0.0002126,2]
[374400029,1753288241921,-160.0,0.0002126,2]
[374400030,1753288241933,-160.0,0.0002126,2]
[374400031,1753288241943,-214.67886746,0.0002126,2]
[374400032,1753288241952,-160.0,0.0002126,2]
[374400033,1753288241962,-215.84326551,0.0002126,2]
[374400034,1753288241971,-160.0,0.0002126,2]
[374400035,1753288241980,-476.696448,0.0002126,2]
[374400036,1753288241990,-160.0,0.0002126,2]
[374400038,1753288241999,-840.06856235,0.0002126,2]
[374400040,1753288242009,-231.11583447,0.0002126,2]
[374400042,1753288242018,-160.0,0.0002126,2]
[374400044,1753288242028,-526.15909479,0.0002126,2]
[374400046,1753288242037,-160.0,0.0002126,2]
[374400048,1753288242047,-12622.36869388,0.0002126,2]
[374400050,1753288242056,-160.0,0.0002126,2]
[374400051,1753288242065,-500.0,0.00021264,2]
[374400053,1753288242075,-500.0,0.00021333,2]
[374400056,1753288242085,-500.0,0.00021333,2]
[374400058,1753288242095,-500.0,0.00021333,2]
[374400059,1753288242105,-500.0,0.00021333,2]
[374400061,1753288242114,-500.0,0.00021333,2]
[374400064,1753288242124,-500.0,0.00021333,2]
[374400066,1753288242133,-500.0,0.00021333,2]
[374400068,1753288242143,-500.0,0.00021333,2]
[374400069,1753288242152,-500.0,0.00021333,2]
[374400072,1753288242162,-500.0,0.00021333,2]
[374400073,1753288242176,-500.0,0.00021333,2]
[374400076,1753288242187,-500.0,0.00021333,2]
[374400078,1753288242197,-500.0,0.00021333,2]
[374400080,1753288242209,-500.0,0.00021333,2]
[374400082,1753288242218,-500.0,0.00021333,2]
[374400084,1753288242229,-500.0,0.00021333,2]
[374400086,1753288242240,-500.0,0.00021333,2]
[374400088,1753288242250,-500.0,0.00021333,2]
[374400090,1753288242261,-500.0,0.00021333,2]
[374400091,1753288242271,-386.60069791,0.00021333,2]
[374400094,1753288242282,-500.0,0.00021333,2]
[374400096,1753288242293,-500.0,0.00021333,2]
[374400098,1753288242305,-500.0,0.00021333,2]
[374400100,1753288242315,-500.0,0.00021333,2]
[374400102,1753288242326,-500.0,0.00021333,2]
[374400104,1753288242338,-500.0,0.00021333,2]
[374400122,1753288242517,-500.0,0.00021333,2]
[374400124,1753288242526,-690.71,0.00021368,2]
[374400126,1753288242536,-862.25,0.00021368,2]
[374400128,1753288242545,-696.5,0.00021368,2]
[374400130,1753288242555,-460.0,0.00021368,2]
[374400132,1753288242565,-460.0,0.00021369,2]
[374400134,1753288242574,-726.78,0.00021369,2]
[374400136,1753288242584,-460.0,0.00021369,2]
[374400138,1753288242593,-985.12,0.00021369,2]
[374400140,1753288242604,-969.61,0.00021369,2]
[374400142,1753288242614,-460.0,0.00021369,2]
[374400144,1753288242623,-679.58,0.00021369,2]
[374400146,1753288242634,-546.07,0.00021369,2]
[374400148,1753288242643,-460.0,0.00021369,2]
[374400150,1753288242652,-460.0,0.00021369,2]
[374400152,1753288242661,-758.35,0.00021369,2]
[374400154,1753288242676,-557.76,0.00021369,2]
[374400156,1753288242685,-460.0,0.00021369,2]
[374400158,1753288242695,-1096.99,0.00021369,2]
[374400160,1753288242704,-4434.18,0.00021369,2]
[374400162,1753288242713,-3588.5,0.00021369,2]
[374400164,1753288242722,-460.0,0.00021369,2]
[374400166,1753288242732,-1540.9,0.00021541,5]
[374400168,1753288242741,-690.71,0.00021642,2]
[374400170,1753288242750,-862.25,0.00021642,2]
[374400172,1753288242759,-696.5,0.00021642,2]
[374400174,1753288242768,-460.0,0.00021642,2]
[374400175,1753288242778,-460.0,0.00021643,2]
[374400177,1753288242787,-726.78,0.00021643,2]
[374400179,1753288242796,-460.0,0.00021643,2]
[374400182,1753288242806,-985.12,0.00021643,2]
[374400184,1753288242816,-969.61,0.00021643,2]
[374400186,1753288242826,-460.0,0.00021643,2]
[374400188,1753288242835,-679.58,0.00021643,2]
[374400190,1753288242844,-546.07,0.00021643,2]
[374400192,1753288242854,-460.0,0.00021643,2]
[374400194,1753288242863,-154.0165947,0.00021643,2]
[374400196,1753288242872,-758.35,0.00021643,2]
[374400197,1753288242882,-557.76,0.00021643,2]
[374400199,1753288242892,-460.0,0.00021643,2]
[374400202,1753288242902,-1096.99,0.00021643,2]
[374400203,1753288242911,-4434.18,0.00021643,2]
[374400206,1753288242924,-3588.5,0.00021643,2]
[374400208,1753288242933,-460.0,0.00021643,2]
[374400210,1753288242943,-632.55064825,0.00021653,2]
[374400211,1753288242952,-429.674968,0.00021669,2]
[374400213,1753288242961,-603.4197967,0.00021669,2]
[374400215,1753288242971,-429.674968,0.00021669,2]
[374400217,1753288242980,-360.0,0.00021696,2]
[374400219,1753288242990,-151.0,0.000218,3]
[374400221,1753288243000,-1540.9,0.00021865,5]
[374400223,1753288243009,-1097.99224489,0.00021881,2]
[374400225,1753288243018,-414.71052898,0.00021881,2]
[374400228,1753288243028,-1000.0,0.00021881,2]
[374400230,1753288243038,-1000.0,0.00021881,2]
[374400232,1753288243047,-1000.0,0.00021881,2]
[374400234,1753288243057,-1000.0,0.00021881,2]
[374400236,1753288243067,-1129.31904846,0.00021881,2]
[374400238,1753288243077,-1000.0,0.00021881,2]
[374400241,1753288243086,-1000.0,0.00021881,2]
[374400243,1753288243096,-500.0,0.00021881,2]
[374400245,1753288243105,-1000.0,0.00021881,2]
[374400246,1753288243115,-1000.0,0.00021881,2]
[374400248,1753288243124,-1000.0,0.00021881,2]
[374400250,1753288243133,-1000.0,0.00021881,2]
[374400252,1753288243143,-1000.0,0.00021881,2]
[374400254,1753288243153,-1000.0,0.00021881,2]
[374400256,1753288243163,-1000.0,0.00021881,2]
[374400259,1753288243178,-1000.0,0.00021881,2]
[374400261,1753288243187,-505.32976117,0.00021881,2]
[374400262,1753288243197,-500.89543393,0.00021881,2]
[374400264,1753288243207,-690.71,0.00021916,2]
[374400266,1753288243216,-862.25,0.00021916,2]
[374400268,1753288243225,-696.5,0.00021916,2]
[374400270,1753288243235,-460.0,0.00021916,2]
[374400272,1753288243245,-460.0,0.00021917,2]
[374400274,1753288243254,-726.78,0.00021917,2]
[374400276,1753288243264,-460.0,0.00021917,2]
[374400278,1753288243273,-985.12,0.00021917,2]
[374400280,1753288243283,-969.61,0.00021917,2]
[374400282,1753288243292,-460.0,0.00021917,2]
[374400284,1753288243302,-679.58,0.00021917,2]
[374400286,1753288243312,-460.0,0.00021917,2]
[374400288,1753288243322,-546.07,0.00021917,2]
[374400290,1753288243331,-500.0,0.00021917,2]
[374400292,1753288243340,-500.0,0.00021917,2]
[374400294,1753288243350,-500.0,0.00021917,2]
[374400296,1753288243359,-500.0,0.00021917,2]
[374400298,1753288243368,-500.0,0.00021917,2]
[374400300,1753288243378,-500.0,0.00021917,2]
[374400302,1753288243387,-500.0,0.00021917,2]
[374400304,1753288243397,-758.35,0.00021917,2]
[374400306,1753288243407,-557.76,0.00021917,2]
[374400308,1753288243417,-460.0,0.00021917,2]
[374400310,1753288243430,-1096.99,0.00021917,2]
[374400312,1753288243439,-4434.18,0.00021917,2]
[374400314,1753288243449,-3588.5,0.00021917,2]
[374400316,1753288243458,-340.79473784,0.00021917,2]
[374400318,1753288243467,-150.46368495,0.00021918,2]
[374400321,1753288243477,-200.0,0.00021918,2]
[374400322,1753288243486,-599.34,0.00021977,3]
[374400325,1753288243495,-1938.12,0.00022,7]
[374400327,1753288243505,-3410.41,0.00022,7]
[374400329,1753288243515,-167.0,0.00022,2]
[374400331,1753288243526,-779.94,0.0002211,3]
[374400333,1753288243535,-160.0,0.0002211,3]
[374400334,1753288243544,-159.9205653,0.00022114,2]
[374400336,1753288243554,-178.2325116,0.00022114,2]
[374400338,1753288243564,-861.98,0.00022165,2]
[374400340,1753288243573,-1198.7,0.00022181,3]
[374400342,1753288243583,-1540.9,0.00022188,5]
[374400344,1753288243592,-690.71,0.0002219,2]
[374400346,1753288243601,-862.25,0.0002219,2]
[374400348,1753288243610,-696.5,0.0002219,2]
[374400350,1753288243619,-460.0,0.0002219,2]
[374400352,1753288243628,-460.0,0.00022191,2]
[374400354,1753288243638,-726.78,0.00022191,2]
[374400356,1753288243647,-460.0,0.00022191,2]
[374400358,1753288243657,-985.12,0.00022191,2]
[374400360,1753288243667,-969.61,0.00022191,2]
[374400362,1753288243680,-460.0,0.00022191,2]
[374400364,1753288243690,-679.58,0.00022191,2]
[374400366,1753288243701,-546.07,0.00022191,2]
[374400368,1753288243711,-164.37461482,0.00022191,2]
[374400370,1753288243721,-758.35,0.00022191,2]
[374400372,1753288243731,-557.76,0.00022191,2]
[374400374,1753288243739,-460.0,0.00022191,2]
[374400376,1753288243749,-1096.99,0.00022191,2]
[374400378,1753288243758,-4434.18,0.00022191,2]
[374400381,1753288243768,-3588.5,0.00022191,2]
[374400383,1753288243778,-167.0,0.00022192,7]
[374400384,1753288243788,-151.0,0.000222,5]
[374400386,1753288243797,-460.0,0.00022244,2]
[374400388,1753288243807,-686.74141713,0.00022365,2]
[374400390,1753288243817,-156.366059,0.00022382,3]
[374400392,1753288243827,-200.043163,0.00022382,3]
[374400394,1753288243836,-291.361643,0.00022426,3]
[374400396,1753288243846,-291.361643,0.00022426,3]
[374400398,1753288243856,-1000.0,0.00022429,2]
[374400400,1753288243866,-513.72045867,0.00022429,2]
[374400402,1753288243875,-500.0,0.00022429,2]
[374400404,1753288243885,-1500.0,0.00022429,2]
[374400406,1753288243894,-1000.0,0.00022429,2]
[374400408,1753288243905,-503.73116406,0.00022429,2]
[374400410,1753288243915,-1500.0,0.00022429,2]
[374400412,1753288243930,-500.0,0.00022429,2]
[374400414,1753288243940,-1500.0,0.00022429,2]
[374400417,1753288243950,-1000.0,0.00022429,2]
[374400418,1753288243959,-502.478894,0.00022429,2]
[374400420,1753288243968,-500.0,0.00022429,2]
[374400422,1753288243978,-500.0,0.00022429,2]
[374400424,1753288243987,-1577.91857325,0.00022429,2]
[374400426,1753288243996,-269.462741,0.00022442,8]
[374400428,1753288244007,-690.71,0.00022464,2]
[374400430,1753288244016,-862.25,0.00022464,2]
[374400432,1753288244025,-696.5,0.00022464,2]
[374400434,1753288244034,-460.0,0.00022464,2]
[374400436,1753288244044,-460.0,0.00022465,2]
[374400438,1753288244053,-460.0,0.00022465,2]
[374400440,1753288244062,-985.12,0.00022465,2]
[374400442,1753288244071,-969.61,0.00022465,2]
[374400444,1753288244081,-460.0,0.00022465,2]
[374400446,1753288244090,-679.58,0.00022465,2]
[374400448,1753288244100,-546.07,0.00022465,2]
[374400450,1753288244109,-758.35,0.00022465,2]
[374400452,1753288244119,-557.76,0.00022465,2]
[374400454,1753288244129,-460.0,0.00022465,2]
[374400456,1753288244139,-2236.08,0.00022465,2]
[374400458,1753288244148,-1096.99,0.00022465,2]
[374400460,1753288244157,-4434.18,0.00022465,2]
[374400462,1753288244166,-3588.5,0.00022465,2]
[374400464,1753288244180,-8623.15916588,0.0002249,7]
[374400466,1753288244190,-160.0,0.0002249,7]
[374400468,1753288244199,-75131.73636979,0.000225,2]
[374400470,1753288244208,-1974.34638018,0.000225,15]
[374400472,1753288244216,-151.0,0.000225,5]
[374400474,1753288244226,-1540.9,0.00022512,5]
[374400475,1753288244235,-349.0,0.00022516,2]
[374400477,1753288244244,-349.0,0.0002253,2]
[374400479,1753288244254,-632.55064825,0.00022538,2]
[374400481,1753288244263,-1211.0,0.0002259,2]
[374400483,1753288244273,-349.0,0.00022592,2]
[374400485,1753288244283,-429.674968,0.00022628,2]
[374400487,1753288244294,-429.674968,0.00022628,2]
[374400489,1753288244304,-429.674968,0.00022628,2]
[374400491,1753288244314,-429.674968,0.00022628,2]
[374400493,1753288244324,-429.674968,0.00022628,2]
[374400495,1753288244334,-429.674968,0.00022628,2]
[374400497,1753288244343,-429.674968,0.00022628,2]
[374400499,1753288244353,-429.674968,0.00022628,2]
[374400501,1753288244363,-429.674968,0.00022628,2]
[374400503,1753288244373,-349.0,0.00022647,2]
[374400505,1753288244382,-151.0,0.0002269,2]
[374400507,1753288244392,-215.0738,0.0002269,2]
[374400509,1753288244401,-151.0,0.0002269,2]
[374400511,1753288244410,-151.0,0.0002269,2]
[374400513,1753288244420,-151.0,0.0002269,2]
[374400515,1753288244434,-151.0,0.0002269,2]
[374400517,1753288244443,-151.0,0.0002269,2]
[374400519,1753288244452,-151.0,0.0002269,2]
[374400521,1753288244461,-151.0,0.0002269,2]
[374400523,1753288244471,-151.0,0.0002269,2]
[374400524,1753288244481,-151.0,0.0002269,2]
[374400526,1753288244490,-151.0,0.0002269,2]
[374400528,1753288244499,-151.0,0.0002269,2]
[374400530,1753288244509,-151.0,0.0002269,2]
[374400532,1753288244520,-151.0,0.0002269,2]
[374400534,1753288244530,-151.0,0.0002269,2]
[374400536,1753288244540,-151.0,0.0002269,2]
[374400538,1753288244551,-151.0,0.0002269,2]
[374400540,1753288244560,-151.0,0.0002269,2]
[374400542,1753288244570,-151.0,0.0002269,2]
[374400544,1753288244579,-151.0,0.0002269,2]
[374400546,1753288244594,-7247.6694273,0.0002269,2]
[374400552,1753288244640,-1117.080004,0.0002269,2]
[374400554,1753288244654,-1275.52,0.0002269,2]
[374400562,1753288244730,-330.01090701,0.00019178,2]
[374400579,1753288244876,-129.98909299,0.00019178,2]
[374400581,1753288244886,-1211.42,0.0002,2]
[374400583,1753288244896,-1211.42,0.00020273,2]
[374400584,1753288244905,-1211.42,0.00020547,2]
[374400586,1753288244914,-1211.42,0.00020821,2]
[374400589,1753288244926,-1211.42,0.00021095,2]
[374400590,1753288244936,-1211.42,0.00021369,2]
[374400592,1753288244945,-1211.42,0.00021643,2]
[374400594,1753288244955,-1211.42,0.00021917,2]
[374400596,1753288244964,-705.11247053,0.0002218,10]
[374400599,1753288244975,-1162.73884087,0.0002218,10]
[374400601,1753288244988,-3309.0086886,0.0002218,10]
[374400603,1753288244997,-946.74131141,0.00022191,2]
[374400605,1753288245008,-264.67868859,0.00022191,2]
[374400607,1753288245018,-1211.42,0.00022465,2]
[374400609,1753288245027,-78.91388575,0.0002269,2]
[374400753,1753288246677,874.0,0.00026027,120]
[374400858,1753288247683,-15280.81668295,0.0002269,2]
[374400860,1753288247692,-3170.38675858,0.0002269,2]
[374400862,1753288247702,-690.71,0.00022738,2]
[374400864,1753288247711,-862.25,0.00022738,2]
[374400866,1753288247720,-696.5,0.00022738,2]
[374400868,1753288247730,-544.632193,0.00022738,2]
[374400870,1753288247739,-460.0,0.00022739,2]